Cogmind - Beta 14 @@@ ROGUE MODE // 2024.12.06 @ 16:51:56 Player: K.Ioz Result: Destroyed by as-26746 with Assembled Rifle Performance ------------- Evolutions (0) 0 Regions Visited (2) 400 Robots Destroyed (25) 125 Value Destroyed (715) 715 Prototype IDs (0) 0 Alien Tech Used (0) 0 Bonus (0) 0 TOTAL SCORE: 1240 Bonus ------- None Cogmind --------- Core Integrity 0/250 Matter 246/300 Energy 100/100 System Corruption 1% Temperature Hot (260) Movement Core (50) Location -10/Mines Parts ------- > --- POWER (1) -------- (None) > --- PROPULSION (2) --- (None) > --- UTILITY (2) ------ (None) > --- WEAPON (2) ------- (None) > --- INVENTORY (5) ---- Light Ion Engine Improved Aluminum Leg Hardened Light Armor Plating Light Cannon Light Cannon Peak State ------------ > --- POWER ------------ Ion Engine > --- PROPULSION ------- Light Treads Light Treads > --- UTILITY ---------- Improved Heat Sink Large Storage Unit > --- WEAPON ----------- Beam Rifle Bore Cannon > --- INVENTORY -------- Light Ion Engine Light Ion Engine Improved Aluminum Leg Improved Aluminum Leg Improved Aluminum Leg Improved Aluminum Leg Large Matter Pod Sensor Array Signal Interpreter Hardened Light Armor Plating Hardened Light Armor Plating Beam Rifle Light Cannon Light Cannon Mini Grenade Launcher [Rating: 16] Favorites ----------- Power Ion Engine Engine Ion Engine Propulsion Light Treads Treads Light Treads Leg Aluminum Leg Utility Large Storage Unit Device Improved Heat Sink Storage Large Storage Unit Protection Light Armor Plating Weapon Medium Laser Energy Gun Medium Laser Ballistic Cannon Light Cannon Launcher Mini Grenade Launcher Build | -11 -10 -10 ------- Run | Yrd Mat Min Slots Evolved . | . . . Power . | . . . Propulsion . | . . . Utility . | . . . Weapon . | . . . Parts Attached 25 | 6 16 3 Power 2 | 1 1 . Engine 2 | 1 1 . Core . | . . . Reactor . | . . . Propulsion 10 | 2 8 . Treads 4 | 2 2 . Leg 6 | . 6 . Wheel . | . . . Hover . | . . . Flight . | . . . Utility 5 | 1 4 . Device 1 | . 1 . Storage 3 | 1 2 . Processor . | . . . Hackware . | . . . Protection 1 | . 1 . Artifact . | . . . Weapon 8 | 2 3 3 Energy Gun 4 | 2 2 . Energy Cannon . | . . . Ballistic Gun . | . . . Ballistic Cannon 3 | . 1 2 Launcher 1 | . . 1 Special Weapon . | . . . Impact Weapon . | . . . Slashing Weapon . | . . . Piercing Weapon . | . . . Special Melee Weapon . | . . . Unidentified Prototypes . | . . . Parts Lost 6 | . 3 3 Power 1 | . . 1 Propulsion 3 | . 2 1 Utility 1 | . . 1 Weapon 1 | . 1 . Highest Loss Streak 3 | . 2 3 To Critical Strikes . | . . . Average Slot Usage (%) 99 | . 99 98 Engine 14 | . 14 14 Treads 14 | . 14 28 Leg 13 | . 13 . Device 12 | . 12 12 Storage 14 | . 14 14 Energy Gun 26 | . 27 14 Ballistic Cannon 1 | . . 14 Peak Build Rating 16 | 6 14 16 Average Rating 9 | 4 10 12 On Entrance 6 | . 6 12 Naked Turns 3 | . . 3 Heaviest Build 32 | 13 32 32 Greatest Support 40 | 40 40 40 Greatest Overweight (x) 2 | . 2 . Average Overweight (x) . | . . . Largest Inventory Capacity 15 | 8 15 15 Average Capacity 14 | 7 14 14 Most Carried 15 | 5 15 15 Average Carried 11 | 2 11 14 Final Capacity 15 | 8 15 5 Final Carried 15 | 4 15 5 Class Distribution -------------------- 100% | Mutant Dominant Class ---------------- Mutant | -10/Materials Mutant | -10/Mines Resources | -11 -10 -10 ----------- Run | Yrd Mat Min Matter Collected 516 | 211 264 41 Remotely . | . . . Salvage Created 898 | . 827 71 Parts 45 | . 41 4 Haulers Intercepted . | . . . Recyclers Shooed . | . . . Parts Field Recycled . | . . . Retrieved Matter . | . . . Parts Self-Destructed . | . . . Prevented . | . . . Kills | -11 -10 -10 ------- Run | Yrd Mat Min Combat Hostiles Destroyed 22 | . 17 5 Guns 19 | . 16 3 Cannons 1 | . . 1 AOE 1 | . . 1 Classes Destroyed 6 | . 4 2 Worker 1 | . 1 . Recycler 1 | . 1 . Watcher 3 | . 3 . Swarmer 3 | . . 3 Grunt 17 | . 17 . Assembled 2 | . . 2 Best Kill Streak 3 | . 3 3 Combat Bots Only 3 | . 3 3 Max Kills in Single Turn 2 | . 1 2 Gunslinging . | . . . Exploded 1 | . . 1 Melee . | . . . Uniques/NPCs Destroyed . | . . . Combat | -11 -10 -10 -------- Run | Yrd Mat Min Hostile Shots Fired 165 | . 85 80 Missed 40 | . 19 21 Damage Taken 1560 | . 832 728 Core 254 | . 116 138 Absorbed by Shields . | . . . Core Remaining (%) 100 | 100 . . Volleys Fired 75 | . 66 9 Largest 2 | . 2 2 Hottest 113 | . 106 113 Shots Fired 150 | . 132 18 Gun 140 | . 131 9 Cannon 9 | . 1 8 Launcher 1 | . . 1 Special . | . . . Kinetic 9 | . 1 8 Thermal 140 | . 131 9 Explosive 1 | . . 1 Electromagnetic . | . . . Robot Hit Streak 25 | . 25 4 Robot Miss Streak 4 | . 3 4 Penetration Max 1 | . . 1 Secondary Targets 2 | . 2 . Max Gunslinging Chain 1 | . 1 . Shots Hit Robots 107 | . 101 6 Core Hits 52 | . 43 9 Critical Kills . | . . . Critical Parts Destroyed 3 | . . 3 Critical Strikes 11 | . 6 5 Burn 8 | . 6 2 Destroy 3 | . . 3 Melee Attacks . | . . . Impact . | . . . Slashing . | . . . Piercing . | . . . Sneak Attacks . | . . . Combat Hostiles . | . . . Follow-up Attacks . | . . . Damage Inflicted 1498 | . 1277 221 Guns 1366 | . 1276 90 Cannons 114 | . . 114 Explosions 17 | . . 17 Melee . | . . . Ramming 1 | . 1 . Kinetic 114 | . . 114 Thermal 1366 | . 1276 90 Explosive 17 | . . 17 Electromagnetic . | . . . Impact . | . . . Slashing . | . . . Piercing . | . . . Highest Corruption 1 | . 1 1 Average Corruption 1 | . 1 1 Corruption Purged . | . . . Corruption Blocked . | . . . Effects 8 | . 7 1 Message Errors 1 | . 1 . Matter Fused 2 | . 2 . Energy Discharges 2 | . 1 1 Parts Fused 1 | . 1 . Data Loss (minor) 2 | . 2 . Overload Shots . | . . . Overflow Damage . | . . . Projectiles . | . . . Explosions . | . . . Melee . | . . . Knockbacks 6 | . . 6 Impact . | . . . Kinetic 4 | . . 4 Secondary 2 | . . 2 Self-Inflicted Damage . | . . . Shots . | . . . Rammed . | . . . Targets Rammed 1 | . 1 . Kicked 1 | . 1 . Crushed . | . . . Highest Temperature 363 | . 363 315 Average Temperature 100 | . 90 167 Received Heat Transfer 585 | . 465 120 Siege Activations . | . . . Robots Corrupted . | . . . Combat Hostiles . | . . . Parts Fried . | . . . Impact Corruptions . | . . . Robots Melted 1 | . 1 . Combat Hostiles 1 | . 1 . Parts Melted 9 | . 9 . Heat Transferred 4108 | . 3738 370 Parts Sabotaged . | . . . Parts Stolen . | . . . Parts Stripped . | . . . Power Chain Reactions . | . . . Alert | -11 -10 -10 ------- Run | Yrd Mat Min Peak Influence 125 | . 125 94 Initial 12 | . . 12 Average 43 | . 42 87 Maximum Alert Level . | . . . Low Security (%) 100 | 100 100 100 Level 1 . | . . . Level 2 . | . . . Level 3 . | . . . Level 4 . | . . . Level 5 . | . . . High Security . | . . . Max Security . | . . . Squads Dispatched 4 | . 4 . Investigation . | . . . Extermination . | . . . Reinforcement 4 | . 4 . Assault . | . . . Garrison . | . . . Intercept . | . . . Searches Triggered . | . . . Construction Impeded . | . . . Haulers Reinforced . | . . . Active Scanning Responses . | . . . Cargo Convoy Interrupts . | . . . Stealth | -11 -10 -10 --------- Run | Yrd Mat Min Distress Signals 1 | . 1 . Communications Jammed . | . . . Distress Signals . | . . . Times Spotted 41 | . 24 17 Peak Tracking Total 12 | . 4 12 Tactical Retreats 1 | . . 1 Traps | -11 -10 -10 ------- Run | Yrd Mat Min Traps Triggered 2 | . 2 . Indirectly . | . . . Trap Hack Attempts . | . . . Triggered . | . . . Disarmed . | . . . Reprogrammed . | . . . Reused . | . . . Traps Extracted . | . . . Installed . | . . . Triggered . | . . . Machines | -11 -10 -10 ---------- Run | Yrd Mat Min Machines Disabled . | . . . Max in Single Turn . | . . . Machines Repaired . | . . . Machines Dismantled . | . . . Machines Sabotaged . | . . . Overloaded Fab Kills . | . . . Hacking | -11 -10 -10 --------- Run | Yrd Mat Min Machines Accessed 4 | . 4 . Terminals 4 | . 4 . Fabricators . | . . . Repair Stations . | . . . Recycling Units . | . . . Scanalyzers . | . . . Garrison Access . | . . . Total Hacks 22 | . 22 . Successful 11 | . 11 . Failed 11 | . 11 . Catastrophic . | . . . Database Lockouts . | . . . Manual 21 | . 21 . Terminals 22 | . 22 . Fabricators . | . . . Repair Stations . | . . . Recycling Units . | . . . Scanalyzers . | . . . Garrison Access . | . . . Terminal Hacks 3 | . 3 . Robot Analysis 2 | . 2 . Unreport Threat 1 | . 1 . Fabricator Hacks . | . . . Repair Station Hacks . | . . . Recycling Unit Hacks . | . . . Scanalyzer . | . . . Garrison Access Hacks . | . . . Unauthorized Hacks 8 | . 8 . Terminals 8 | . 8 . Botnet 4 | . 4 . Skim 4 | . 4 . Fabricators . | . . . Repair Stations . | . . . Recycling Units . | . . . Scanalyzers . | . . . Garrison Access . | . . . Data Cores Recovered . | . . . Used . | . . . Hacking Detections 4 | . 4 . Full Trace Events . | . . . Feedback Events . | . . . Feedback Blocked . | . . . Robot Schematics Acquired . | . . . Robots Built . | . . . Authchips . | . . . Time . | . . . Total Robot Build Rating . | . . . Part Schematics Acquired . | . . . Parts Built . | . . . Authchips . | . . . Time . | . . . Total Part Build Rating . | . . . Parts Repaired . | . . . Time . | . . . Parts Recycled . | . . . Recycled Matter . | . . . Retrieved Matter . | . . . Retrieved Components . | . . . Parts Scanalyzed . | . . . Part Schematics Acquired . | . . . Parts Damaged . | . . . Bothacking | -11 -10 -10 ------------ Run | Yrd Mat Min Used RIF Installer . | . . . Robots Hacked . | . . . Non-combat . | . . . Combat . | . . . Robot Hacks Applied . | . . . Relay Couplers Released . | . . . Fabnet Peak Effective % . | . . . Robots Rewired . | . . . Allies Hacked . | . . . Hacks Repelled . | . . . Allies | -11 -10 -10 -------- Run | Yrd Mat Min Total Allies . | . . . Largest Group . | . . . Highest-Rated Group . | . . . Highest-Rated Ally . | . . . Total Orders . | . . . Ally Attacks . | . . . Total Damage . | . . . Kills . | . . . Allies Corrupted . | . . . Allies Melted . | . . . Intel | -11 -10 -10 ------- Run | Yrd Mat Min Robot Analysis Total 2 | . 2 . Derelict Logs Recovered . | . . . Drone Launches . | . . . Drone Recoveries . | . . . Exploration | -11 -10 -10 ------------- Run | Yrd Mat Min Turns Passed 2968 | 71 2768 129 Spaces Moved 953 | 40 852 61 Core 8 | 5 . 3 Treads 325 | 35 232 58 Legs 620 | . 620 . Wheels . | . . . Hover . | . . . Flight . | . . . Fastest Speed 50 | 50 160 50 Average Speed 178 | 146 181 154 Slowest Speed 260 | 160 260 160 Overloaded Moves . | . . . Propulsion Burnouts . | . . . Robots Hopped . | . . . Cave-ins Triggered . | . . . Exploration Rate (%) 41 | 4 97 23 Regions Visited 2 Branch Regions 1 Pre-discovered Areas . | . . . Known Exits Taken . | . . . Unknown Exits Taken 2 | 1 1 . Scrap Searched . | . . . Spaces Dug . | . . . Terrain Destroyed 17 | . . 17 Melee . | . . . Projectile 4 | . . 4 AOE 13 | . . 13 Terrain Rammed . | . . . Walls Destroyed . | . . . Machines Disabled . | . . . Actions | -11 -10 -10 --------- Run | Yrd Mat Min Total 2067 | 50 1940 77 Wait 967 | . 965 2 Move 951 | 39 851 61 Hop . | . . . Pick Up 30 | 5 24 1 Fast Attach 10 | 5 5 . Attach 6 | 1 5 . Detach 1 | . 1 . Swap 9 | . 6 3 Drop 17 | . 16 1 Fire 75 | . 66 9 Melee . | . . . Ram . | . . . Kick 1 | . 1 . Crush . | . . . Escape Stasis . | . . . Rewire . | . . . Trap . | . . . Miscellaneous . | . . . Route ------- -11/Scrapyard -10/Materials (discovered 4 exits: [*Mat x3] / [*Min]) -10/Mines History --------- Turn | Location | Event 7 | -11/Scrapyard | Discovered new exit (range 14) 72 | -11/Scrapyard | Entered Materials 317 | -10/Materials | Build established: Mutant 1454 | -10/Materials | Discovered new exit (range 16) 1484 | -10/Materials | Discovered new exit (range 8) 1528 | -10/Materials | Discovered new exit (range 16) 2105 | -10/Materials | Discovered new exit (range 11) 2840 | -10/Materials | Entered Mines 2932 | -10/Mines | Assembled infested the area 2937 | -10/Mines | Assisted by a Guerilla fighting off Assembled 2956 | -10/Mines | Core integrity fell below 50% 2966 | -10/Mines | Released all parts (4) 2968 | -10/Mines | Core integrity fell below 20% 2969 | -10/Mines | Destroyed by as-26746 with Assembled Rifle Last Messages --------------- 02951_ HV Slug penetrates Wall. 02952_ Imp. Heat Sink destroyed. 02954_ as-82355 suffers critical hit (Burn). 02954_ HV Slug penetrates as-77747. 02954_ as-21016 suffers critical hit (Destroy). 02954_ Destroyed Asb. Rifle. 02954_ as-21016 knocked back. 02957_ HV Slug penetrates Wall. 02960_ HV Slug penetrates as-82355. 02960_ as-82355 knocked back. 02963_ Ion Engine destroyed. 02963_ as-97664 suffers critical hit (Burn). 02963_ as-97664 destroyed. 02963_ HV Slug penetrates Wall. 02966_ Lgt. Treads destroyed. 02966_ Released Beam Rifle. 02966_ Released Lrg. Storage Unit. 02966_ Released Lgt. Treads. 02966_ Released Bore Cannon. 02967_ U-05 Engineer builds a Wall. Map ----- +----------------------------------------------------+ | ??????????????????## #### #?? | | ???????????????????## #?? | | ????????????????????# ##?? | | ????????????????????# ## ####??? | | ????????????????????## ### #?????? | | ?????????????????????## #####?# #?????? | | ??????????????????????# #?????# #?????? | | ??????????????????????# #?##### #?????? | | ??????????????????????# #?# #?????? | | ??????????????????????# #?# #####?????? | | ??????????????????????# #?# #?????????? | | ??????????????????????# #?# #?????????? | | ??????????????????????# #?# #?????????? | | ??????????????????????# ??# #?????????? | | ??????????????????????# ### ##????????? | | ??????????????????????# #????????? | | ??????????????????????# #### #????????? | | ??????????????????????# $???# #????????? | | ??????????????????????# ???# #????????? | | ??????????????????????# ???# #????????? | | ?????????????????????##u ??## ##???????? | | ?????????????????????## ###=! #???????? | | ????????????????????### [*!=]#???????? | | ????????????????????#; %!][!##???????? | | ???????????????????## a % !=##????????? | | ?????????????????### a!@ =##?????????? | | ?????????? %aa%###??????????? | | ?????????????####### %aa##????????????? | | ???????????????????## ??????????????? | | ????????????????????## ??????????????? | | ?????????????????????# ??????????????? | | ?????????????????????a ???????????????? | | ???????????????????? ???????????????? | | ??????????????????? ???????????????? | | ??????????????????# ???????????????? | | ?????????????????? a ????????????????? | | ????????????????? % #????????????????? | | ???????????????? #?????????????????? | | ???????????????? %??????????????????? | | ?????????????????? ????????????????????? | | ???????????????????????????????????????? | | ???????????????????????????????????????? | | ???????????????????????????????????????? | | ???????????????????????????????????????? | | ???????????????????????????????????????? | | ???????????????????????????????????????? | | ???????????????????????????????????????? | | ???????????????????????????????????????? | | ???????????????????????????????????????? | | ???????????????????????????????????????? | +----------------------------------------------------+ Best States ------------- Heat Dissipation 39 Energy Generation 10 Energy Capacity 250 Matter Stores 300 Matter Capacity 300 Sight Range 16 Terrain Scan Density 10 Armor Coverage 150 Evasion (%) 40 Recoil Reduction 2 Item Schematics ----------------- None Robot Schematics ------------------ None Fabricated ------------ Nothing Alien Tech Used ----------------- None Achievements -------------- None Challenges ------------ None Game ------ Seed MatterSuperquantumCanceller Manual? 0 Play Time 00:17:09 Cumulative 199.9 hours Start 2024.12.06 @ 16:36:06 End 2024.12.06 @ 16:51:56 Sessions 1 Manual Loads 0 Difficulty Rogue Special Mode None Game No. 152 Rogue 119 Adventurer 0 Explorer 33 Win Type - Total 4 Types 4/0/0/0/0/0/0/0/0 Lore% 39 Gallery% 59 Achievement% 58 Wizard Run 0 Options --------- Layout 2 ASCII 0 Keyboard 1 Movement Vi Keybinds 0 Fullscreen 1 Font 16/SmallcapsGlow Map View 53x45 Zoom Use 0% Tactical HUD 1 Map Filters NONE Filters LOW_CONTRAST(47,30,31) Steam 1 RUN: 3410fd1d-044d-47c9-8ca0-7d5b807dd23f